fUSD/lending_fUSD_20240629
["ID","MTS","AMOUNT","RATE_DAILY","PERIOD"]
[330662206,1719697855912,-1920.21,0.00013162,2]
[330662207,1719697855921,-2838.20100163,0.00013698,3]
[330662208,1719697855930,-505.25,0.00013698,3]
[330662209,1719697855940,-500.0,0.00013698,3]
[330662210,1719697855949,-500.0,0.00013698,3]
[330662211,1719697855958,-500.0,0.00013698,3]
[330662212,1719697855968,-1031.14,0.00013698,3]
[330662213,1719697855977,-500.0,0.00013698,3]
[330662214,1719697855987,-500.0,0.00013698,3]
[330662215,1719697855996,-500.0,0.00013698,3]
[330662216,1719697856005,-2081.24,0.00013698,3]
[330662217,1719697856014,-22088.54,0.00013698,3]
[330662218,1719697856024,-5023.6,0.00013698,3]
[330662219,1719697856033,-500.0,0.00013698,3]
[330662220,1719697856043,-608.32,0.00013698,3]
[330662221,1719697856052,-801.09,0.00013698,3]
[330662222,1719697856061,-1971.0,0.00013698,3]
[330662223,1719697856071,-3016.9,0.00013698,3]
[330662224,1719697856082,-574.5,0.00013698,3]
[330662225,1719697856091,-794.3,0.00013698,3]
[330662226,1719697856101,-1567.25,0.00013698,3]
[330662227,1719697856110,-1045.65,0.00013698,3]
[330662228,1719697856119,-1134.29,0.00013698,3]
[330662229,1719697856129,-1963.59,0.00013698,3]
[330662230,1719697856138,-7724.48,0.00013698,3]
[330662231,1719697856147,-1149.35,0.00013698,3]
[330662232,1719697856157,-500.0,0.00013698,3]
[330662233,1719697856166,-7929.21,0.00013698,3]
[330662234,1719697856175,-500.0,0.00013698,3]
[330662235,1719697856184,-1201.55,0.00013698,3]
[330662236,1719697856194,-757.6,0.00013698,3]
[330662237,1719697856203,-1529.23,0.00013698,3]
[330662238,1719697856212,-1234.75,0.00013698,3]
[330662239,1719697856221,-1878.19,0.00013698,3]
[330662240,1719697856231,-500.0,0.00013698,3]
[330662241,1719697856240,-691.0,0.00013698,3]
[330662242,1719697856249,-2814.02,0.00013698,3]
[330662243,1719697856258,-500.0,0.00013698,3]
[330662244,1719697856267,-500.0,0.00013698,3]
[330662245,1719697856277,-500.0,0.00013698,3]
[330662246,1719697856285,-3153.71,0.00013698,3]
[330662247,1719697856294,-1264.25,0.00013698,3]
[330662248,1719697856303,-945.84,0.00013698,3]
[330662249,1719697856313,-500.0,0.00013698,3]
[330662250,1719697856322,-500.0,0.00013698,3]
[330662251,1719697856333,-500.0,0.00013698,3]
[330662252,1719697856342,-500.0,0.00013698,3]
[330662253,1719697856351,-500.0,0.00013698,3]
[330662254,1719697856360,-725.8,0.00013698,3]
[330662255,1719697856373,-500.0,0.00013698,3]
[330662256,1719697856381,-500.0,0.00013698,3]
[330662257,1719697856390,-500.0,0.00013698,3]
[330662258,1719697856399,-1599.88,0.00013698,3]
[330662259,1719697856408,-844.67,0.00013698,3]
[330662260,1719697856418,-2776.06,0.00013698,3]
[330662261,1719697856427,-1177.78,0.00013698,3]
[330662262,1719697856436,-902.09,0.00013698,3]
[330662263,1719697856447,-1529.45,0.00013698,3]
[330662264,1719697856457,-531.92,0.00013698,3]
[330662265,1719697856466,-743.44,0.00013698,3]
[330662266,1719697856474,-574.2,0.00013698,3]
[330662267,1719697856484,-500.0,0.00013698,3]
[330662268,1719697856493,-379.54339704,0.00013698,3]
[330662269,1719697856502,-1862.69,0.00013698,3]
[330662270,1719697856511,-2338.68,0.00013698,3]
[330662271,1719697856520,-500.0,0.00013698,3]
[330662272,1719697856527,-500.0,0.00013698,3]
[330662273,1719697856536,-500.0,0.00013698,3]
[330662274,1719697856545,-500.0,0.00013698,3]
[330662275,1719697856555,-500.0,0.00013698,3]
[330662276,1719697856564,-500.0,0.00013698,3]
[330662277,1719697856573,-561.21,0.00013698,3]
[330662278,1719697856584,-2684.36,0.00013698,3]
[330662279,1719697856593,-1258.1,0.00013698,3]
[330662280,1719697856603,-500.0,0.00013698,3]
[330662281,1719697856612,-500.0,0.00013698,3]
[330662282,1719697856621,-865.21,0.00013698,3]
[330662283,1719697856631,-500.0,0.00013698,3]
[330662284,1719697856641,-1191.09,0.00013698,3]
[330662285,1719697856651,-500.0,0.00013698,3]
[330662286,1719697856660,-500.0,0.00013698,3]
[330662287,1719697856668,-500.0,0.00013698,3]
[330662288,1719697856678,-500.0,0.00013698,3]
[330662289,1719697856687,-1259.89,0.00013698,3]
[330662290,1719697856696,-726.84,0.00013698,3]
[330662291,1719697856705,-500.0,0.00013698,3]
[330662292,1719697856715,-500.0,0.00013698,3]
[330662293,1719697856725,-500.0,0.00013698,3]
[330662294,1719697856734,-894.84,0.00013698,3]
[330662295,1719697856744,-500.0,0.00013698,3]
[330662296,1719697856753,-5502.95,0.00013698,3]
[330662297,1719697856762,-804.55,0.00013698,3]
[330662298,1719697856771,-1767.86,0.00013698,3]
[330662299,1719697856780,-645.52,0.00013698,3]
[330662300,1719697856789,-500.0,0.00013698,3]
[330662301,1719697856799,-1866.94,0.00013698,3]
[330662302,1719697856808,-500.0,0.00013698,3]
[330662303,1719697856817,-545.65,0.00013698,3]
[330662304,1719697856826,-269.35481537,0.00013698,3]
[330662305,1719697856836,-528.33,0.00013698,3]
[330662306,1719697856845,-765.3,0.00013698,3]
[330662307,1719697856854,-500.0,0.00013698,3]
[330662308,1719697856863,-1285.81,0.00013698,3]
[330662309,1719697856872,-1267.3,0.00013698,3]
[330662310,1719697856882,-500.0,0.00013698,3]
[330662311,1719697856891,-500.0,0.00013698,3]
[330662312,1719697856901,-500.0,0.00013698,3]
[330662313,1719697856910,-500.0,0.00013698,3]
[330662314,1719697856920,-825.44,0.00013698,3]
[330662315,1719697856929,-500.0,0.00013698,3]
[330662316,1719697856940,-250.0,0.00013698,3]
[330662317,1719697856949,-623.61,0.00013698,3]
[330662318,1719697856958,-880.44,0.00013698,3]
[330662319,1719697856967,-3596.23,0.00013698,3]
[330662320,1719697856978,-806.06,0.00013698,3]
[330662321,1719697856988,-500.0,0.00013698,3]
[330662322,1719697857000,-3814.0,0.00013698,3]
[330662323,1719697857011,-3054.34,0.00013698,3]
[330662324,1719697857020,-588.77,0.00013698,3]
[330662325,1719697857029,-500.0,0.00013698,3]
[330662326,1719697857038,-500.0,0.00013698,3]
[330662327,1719697857047,-1703.73,0.00013698,3]
[330662328,1719697857056,-500.0,0.00013698,3]
[330662329,1719697857065,-627.61,0.00013698,3]
[330662330,1719697857074,-1606.7,0.00013698,3]
[330662331,1719697857083,-659.8,0.00013698,3]
[330662332,1719697857092,-500.0,0.00013698,3]
[330662333,1719697857101,-6175.57,0.00013698,3]
[330662334,1719697857111,-500.0,0.00013698,3]
[330662335,1719697857120,-500.0,0.00013698,3]
[330662336,1719697857129,-1132.58,0.00013698,3]
[330662337,1719697857137,-500.0,0.00013698,3]
[330662338,1719697857146,-500.0,0.00013698,3]
[330662339,1719697857155,-500.0,0.00013698,3]
[330662340,1719697857165,-500.0,0.00013698,3]
[330662341,1719697857173,-1526.7,0.00013698,3]
[330662342,1719697857182,-4764.49,0.00013698,3]
[330662343,1719697857192,-500.0,0.00013698,3]
[330662344,1719697857201,-500.0,0.00013698,3]
[330662345,1719697857210,-500.0,0.00013698,3]
[330662346,1719697857218,-990.4,0.00013698,3]
[330662347,1719697857227,-5595.59,0.00013698,3]
[330662348,1719697857236,-650.44,0.00013698,3]
[330662349,1719697857245,-3939.36,0.00013698,3]
[330662350,1719697857254,-2098.21,0.00013698,3]
[330662351,1719697857263,-932.74,0.00013698,3]
[330662352,1719697857272,-568.9,0.00013698,3]
[330662353,1719697857281,-500.0,0.00013698,3]
[330662354,1719697857290,-943.54,0.00013698,3]
[330662355,1719697857300,-1048.8,0.00013698,3]
[330662356,1719697857309,-4134.76,0.00013698,3]
[330662357,1719697857319,-500.0,0.00013698,3]
[330662358,1719697857329,-659.06,0.00013698,3]
[330662359,1719697857339,-1357.28,0.00013698,3]
[330662360,1719697857348,-500.0,0.00013698,3]
[330662361,1719697857357,-4580.63,0.00013698,3]
[330662362,1719697857368,-500.0,0.00013698,3]
[330662363,1719697857388,-500.0,0.00013698,3]
[330662364,1719697857398,-824.84,0.00013698,3]
[330662365,1719697857408,-4545.37,0.00013698,3]
[330662366,1719697857418,-824.25,0.00013698,3]
[330662367,1719697857427,-1343.98,0.00013698,3]
[330662368,1719697857437,-180.9046186,0.00013698,3]
[330662369,1719697857447,-3087.82,0.00013698,3]
[330662370,1719697857457,-1024.35,0.00013698,3]
[330662371,1719697857467,-1876.11,0.00013698,3]
[330662372,1719697857477,-500.0,0.00013698,3]
[330662373,1719697857486,-1236.5,0.00013698,3]
[330662374,1719697857496,-649.92,0.00013698,3]
[330662375,1719697857505,-3079.7,0.00013698,3]
[330662376,1719697857515,-1991.15,0.00013698,3]
[330662377,1719697857524,-500.0,0.00013698,3]
[330662378,1719697857534,-8026.11,0.00013698,3]
[330662379,1719697857543,-527.58,0.00013698,3]
[330662380,1719697857553,-936.25,0.00013698,3]
[330662381,1719697857563,-1350.58,0.00013698,3]
[330662382,1719697857572,-1069.06,0.00013698,3]
[330662383,1719697857582,-5643.12,0.00013698,3]
[330662384,1719697857591,-500.0,0.00013698,3]
[330662385,1719697857601,-4296.17,0.00013698,3]
[330662386,1719697857610,-3276.15,0.00013698,3]
[330662387,1719697857620,-500.0,0.00013698,3]
[330662388,1719697857629,-500.0,0.00013698,3]
[330662389,1719697857639,-500.0,0.00013698,3]
[330662390,1719697857648,-500.0,0.00013698,3]
[330662391,1719697857658,-1170.29,0.00013698,3]
[330662392,1719697857668,-500.0,0.00013698,3]
[330662393,1719697857677,-500.0,0.00013698,3]
[330662394,1719697857687,-2603.39,0.00013698,3]
[330662395,1719697857696,-500.0,0.00013698,3]
[330662396,1719697857705,-893.86,0.00013698,3]
[330662397,1719697857715,-1176.78,0.00013698,3]
[330662398,1719697857724,-1185.67,0.00013698,3]
[330662399,1719697857734,-518.31,0.00013698,3]
[330662400,1719697857744,-500.0,0.00013698,3]
[330662401,1719697857753,-547.81,0.00013698,3]
[330662402,1719697857763,-500.0,0.00013698,3]
[330662403,1719697857772,-500.0,0.00013698,3]
[330662404,1719697857782,-3268.24,0.00013698,3]
[330662405,1719697857792,-500.0,0.00013698,3]
[330662406,1719697857802,-500.0,0.00013698,3]
[330662407,1719697857812,-2326.63,0.00013698,3]
[330662408,1719697857822,-1561.26,0.00013698,3]
[330662409,1719697857832,-500.0,0.00013698,3]
[330662410,1719697857842,-3892.68,0.00013698,3]
[330662411,1719697857851,-500.0,0.00013698,3]
[330662412,1719697857861,-500.0,0.00013698,3]
[330662413,1719697857870,-608.94,0.00013698,3]
[330662414,1719697857880,-500.0,0.00013698,3]
[330662415,1719697857889,-1365.85,0.00013698,3]
[330662416,1719697857898,-1072.42,0.00013698,3]
[330662417,1719697857907,-619.13,0.00013698,3]
[330662418,1719697857917,-651.51,0.00013698,3]
[330662419,1719697857926,-1596.85,0.00013698,3]
[330662420,1719697857936,-500.0,0.00013698,3]
[330662421,1719697857945,-351.48367197,0.00013698,3]
[330662422,1719697857954,-1324.36,0.00013698,3]
[330662423,1719697857964,-500.0,0.00013698,3]
[330662424,1719697857973,-500.0,0.00013698,2]
[330662425,1719697857982,-500.0,0.00013698,3]
[330662426,1719697857991,-500.0,0.00013698,2]
[330662427,1719697858000,-5315.74,0.00013698,3]
[330662428,1719697858010,-500.0,0.00013698,3]
[330662429,1719697858019,-2696.9,0.00013698,3]
[330662430,1719697858029,-500.0,0.00013698,3]
[330662431,1719697858038,-1610.36,0.00013698,3]
[330662432,1719697858048,-1094.74,0.00013698,3]
[330662433,1719697858057,-500.0,0.00013698,3]
[330662434,1719697858067,-1796.48,0.00013698,3]
[330662435,1719697858076,-500.0,0.00013698,3]
[330662436,1719697858086,-2379.59,0.00013698,3]
[330662437,1719697858096,-500.0,0.00013698,3]
[330662438,1719697858105,-500.0,0.00013698,3]
[330662439,1719697858115,-966.95,0.00013698,3]
[330662440,1719697858125,-6591.7,0.00013698,3]
[330662441,1719697858134,-500.0,0.00013698,3]
[330662442,1719697858144,-3369.59,0.00013698,3]
[330662443,1719697858153,-2662.28,0.00013698,3]
[330662444,1719697858162,-500.0,0.00013698,3]
[330662445,1719697858171,-831.59,0.00013698,3]
[330662446,1719697858182,-630.2,0.00013698,3]
[330662447,1719697858191,-529.01,0.00013698,3]
[330662448,1719697858200,-914.37,0.00013698,3]
[330662449,1719697858210,-500.0,0.00013698,3]
[330662450,1719697858219,-1402.23,0.00013698,3]
[330662451,1719697858229,-1411.69,0.00013698,3]
[330662452,1719697858238,-500.0,0.00013698,3]
[330662453,1719697858247,-1196.92,0.00013698,3]
[330662454,1719697858255,-500.0,0.00013698,3]
[330662455,1719697858264,-500.0,0.00013698,3]
[330662456,1719697858273,-500.0,0.00013698,3]
[330662457,1719697858283,-1448.17,0.00013698,3]
[330662458,1719697858292,-170.3219681,0.00013698,3]
[330662459,1719697858302,-2109.02,0.00013698,3]
[330662460,1719697858311,-2625.47,0.00013698,3]
[330662461,1719697858320,-500.0,0.00013698,3]
[330662462,1719697858330,-500.0,0.00013698,3]
[330662463,1719697858339,-890.02,0.00013698,3]
[330662464,1719697858348,-2903.57,0.00013698,3]
[330662465,1719697858358,-4050.51,0.00013698,3]
[330662466,1719697858369,-679.62,0.00013698,3]
[330662467,1719697858380,-500.0,0.00013698,3]
[330662468,1719697858390,-2762.0,0.00013698,3]
[330662469,1719697858399,-500.0,0.00013698,3]
[330662470,1719697858408,-1721.06,0.00013698,3]
[330662471,1719697858418,-500.0,0.00013698,3]
[330662472,1719697858427,-500.0,0.00013698,3]
[330662473,1719697858436,-2217.0,0.00013698,3]
[330662474,1719697858446,-677.84,0.00013698,3]
[330662475,1719697858456,-3787.36,0.00013698,3]
[330662476,1719697858466,-862.21,0.00013698,3]
[330662477,1719697858476,-1414.56,0.00013698,3]
[330662478,1719697858485,-1050.13,0.00013698,3]
[330662479,1719697858495,-858.84,0.00013698,3]
[330662480,1719697858504,-2169.01,0.00013698,3]
[330662481,1719697858514,-500.0,0.00013698,3]
[330662482,1719697858523,-500.0,0.00013698,3]
[330662483,1719697858532,-2715.14,0.00013698,3]
[330662484,1719697858541,-2110.08,0.00013698,3]
[330662485,1719697858550,-2046.76,0.00013698,3]
[330662486,1719697858559,-1167.19,0.00013698,3]
[330662487,1719697858569,-500.0,0.00013698,3]
[330662488,1719697858578,-2443.62,0.00013698,3]
[330662489,1719697858587,-1971.4,0.00013698,3]
[330662490,1719697858597,-944.41,0.00013698,3]
[330662491,1719697858607,-557.42,0.00013698,3]
[330662492,1719697858616,-3188.54,0.00013698,3]
[330662493,1719697858626,-1082.52,0.00013698,3]
[330662494,1719697858635,-3460.61,0.00013698,3]
[330662495,1719697858644,-500.0,0.00013698,3]
[330662496,1719697858654,-500.0,0.00013698,3]
[330662497,1719697858663,-1232.85,0.00013698,3]
[330662498,1719697858673,-500.0,0.00013698,3]
[330662499,1719697858682,-500.0,0.00013698,3]
[330662500,1719697858691,-538.92,0.00013698,3]
[330662501,1719697858700,-6017.33,0.00013698,3]
[330662502,1719697858710,-1164.17,0.00013698,3]
[330662503,1719697858718,-702.28,0.00013698,3]
[330662504,1719697858727,-500.0,0.00013698,3]
[330662505,1719697858736,-6371.13,0.00013698,3]
[330662506,1719697858744,-151.0,0.00013698,2]
[330662507,1719697858754,-1495.82,0.00013698,3]
[330662508,1719697858763,-500.0,0.00013698,3]
[330662509,1719697858772,-1005.1,0.00013698,3]
[330662510,1719697858781,-545.13,0.00013698,3]
[330662511,1719697858790,-996.78,0.00013698,3]
[330662512,1719697858799,-3151.93,0.00013698,3]
[330662513,1719697858809,-736.29,0.00013698,3]
[330662514,1719697858818,-444.81324615,0.00013698,3]
[330662515,1719697858827,-500.0,0.00013698,3]
[330662516,1719697858842,-500.0,0.00013698,3]
[330662517,1719697858851,-200.0,0.00013699,2]
[330662518,1719697858862,-200.0,0.00013699,2]
[330662519,1719697858871,-247.65,0.00013699,2]
[330662520,1719697858880,-629.15,0.00013699,2]
[330662521,1719697858889,-382.20092064,0.00013708,2]
[330662522,1719697858898,-157.65373048,0.00013708,2]
[330662523,1719697858907,-14953.2948686,0.00013708,2]
[330662524,1719697858916,-151.998256,0.00013708,2]
[330662525,1719697858925,-500.0,0.00013749,2]
[330662526,1719697858933,-32734.4906682,0.0001377,2]
[330662527,1719697858942,-151.0,0.0001379,2]
[330662528,1719697858951,-16740.69557945,0.0001379,2]
[330662529,1719697858960,-16740.69557941,0.0001379,2]
[330662530,1719697858969,-500.0,0.00013797,2]
[330662531,1719697858978,-1765.927963,0.00013798,2]
[330662532,1719697858988,-786.83358003,0.00013798,2]
[330662533,1719697859102,-3434.2380106,0.00013798,2]
[330662534,1719697859119,-16560.8783143,0.00013798,2]
[330662535,1719697859128,-11917.3183807,0.00013798,2]
[330662536,1719697859138,-32198.3546254,0.00013798,2]
[330662537,1719697859148,-153.139188,0.00013798,2]
[330662538,1719697859157,-29804.2282262,0.00013798,2]
[330662539,1719697859167,-151.0,0.00013798,2]
[330662540,1719697859176,-2438.96933188,0.00013799,2]
[330662541,1719697859187,-2438.96933179,0.00013799,2]
[330662542,1719697859197,-2237.0,0.000138,2]
[330662543,1719697859206,-892.0,0.000138,2]
[330662544,1719697859216,-500.0,0.00013806,2]
[330662545,1719697859225,-201.35143862,0.00013807,2]
[330662546,1719697859235,-500.0,0.00013807,2]
[330662547,1719697859244,-500.0,0.00013807,2]
[330662548,1719697859253,-500.0,0.00013807,2]
[330662549,1719697859263,-500.0,0.00013807,2]
[330662550,1719697859272,-500.0,0.00013807,2]
[330662551,1719697859282,-500.0,0.00013807,2]
[330662552,1719697859291,-500.0,0.00013807,2]
[330662553,1719697859300,-2074.03,0.00013808,3]
[330662554,1719697859309,-6680.53,0.00013808,3]
[330662555,1719697859319,-3955.67,0.00013808,3]
[330662556,1719697859328,-2829.49,0.00013808,3]
[330662557,1719697859339,-2444.54,0.00013808,3]
[330662558,1719697859348,-1698.62,0.00013808,3]
[330662559,1719697859358,-1375.34,0.00013808,3]
[330662560,1719697859369,-3508.71,0.00013808,3]
[330662561,1719697859379,-3766.12,0.00013808,3]
[330662562,1719697859389,-4049.16,0.00013808,3]
[330662563,1719697859398,-4127.7,0.00013808,3]
[330662564,1719697859407,-2752.9,0.00013808,3]
[330662565,1719697859418,-3856.66,0.00013808,3]
[330662566,1719697859427,-2718.08,0.00013808,3]
[330662567,1719697859437,-4618.86,0.00013808,3]
[330662568,1719697859449,-8596.57,0.00013808,3]
[330662569,1719697859458,-9388.9,0.00013808,3]
[330662570,1719697859468,-2782.53,0.00013808,3]
[330662571,1719697859478,-3679.01,0.00013808,3]
[330662572,1719697859488,-10798.79,0.00013808,3]
[330662573,1719697859497,-2000.0,0.00013808,2]
[330662574,1719697859507,-200.0,0.00013808,2]
[330662575,1719697859517,-1708.01,0.00013808,3]
[330662576,1719697859527,-693.37,0.00013808,3]
[330662577,1719697859537,-500.0,0.00013808,3]
[330662578,1719697859547,-2836.27,0.00013808,3]
[330662579,1719697859557,-500.0,0.00013808,3]
[330662580,1719697859567,-876.04,0.00013808,3]
[330662581,1719697859577,-520.9,0.00013808,3]
[330662582,1719697859587,-500.0,0.00013808,3]
[330662583,1719697859597,-266.05932641,0.00013808,3]
[330662584,1719697859607,-525.4,0.00013808,3]
[330662585,1719697859616,-500.0,0.00013808,3]
[330662586,1719697859626,-2888.38,0.00013808,3]
[330662587,1719697859636,-500.0,0.00013808,3]
[330662588,1719697859646,-500.0,0.00013808,3]
[330662589,1719697859655,-799.65,0.00013808,3]
[330662590,1719697859665,-1213.94,0.00013808,3]
[330662591,1719697859675,-500.0,0.00013808,3]
[330662592,1719697859685,-500.0,0.00013808,3]
[330662593,1719697859695,-913.57,0.00013808,3]
[330662594,1719697859704,-500.0,0.00013808,3]
[330662595,1719697859714,-500.0,0.00013808,3]
[330662596,1719697859724,-521.95,0.00013808,3]
[330662597,1719697859733,-500.0,0.00013808,3]
[330662598,1719697859743,-500.0,0.00013808,3]
[330662599,1719697859752,-1326.28,0.00013808,3]
[330662600,1719697859762,-992.84,0.00013808,3]
[330662601,1719697859772,-712.38,0.00013808,3]
[330662602,1719697859781,-1192.62,0.00013808,3]
[330662603,1719697859791,-685.54,0.00013808,3]
[330662604,1719697859801,-500.0,0.00013808,3]
[330662605,1719697859811,-913.12,0.00013808,3]
[330662606,1719697859821,-1171.75,0.00013808,3]
[330662607,1719697859831,-500.0,0.00013808,3]
[330662608,1719697859840,-500.0,0.00013808,3]
[330662609,1719697859850,-500.0,0.00013808,3]
[330662610,1719697859859,-1113.91,0.00013808,3]
[330662611,1719697859868,-500.0,0.00013808,3]
[330662612,1719697859878,-500.0,0.00013808,3]
[330662613,1719697859887,-514.5,0.00013808,3]
[330662614,1719697859897,-500.0,0.00013808,3]
[330662615,1719697859906,-500.0,0.00013808,3]
[330662616,1719697859915,-500.0,0.00013808,3]
[330662617,1719697859925,-500.0,0.00013808,3]
[330662618,1719697859934,-577.51,0.00013808,3]
[330662619,1719697859944,-2797.19,0.00013808,3]
[330662620,1719697859953,-500.0,0.00013808,3]
[330662621,1719697859963,-500.0,0.00013808,3]
[330662622,1719697859973,-710.19,0.00013808,3]
[330662623,1719697859982,-500.0,0.00013808,3]
[330662624,1719697859991,-526.63,0.00013808,3]
[330662625,1719697860001,-500.0,0.00013808,3]
[330662626,1719697860010,-500.0,0.00013808,3]
[330662627,1719697860020,-500.0,0.00013808,3]
[330662628,1719697860029,-745.32,0.00013808,3]
[330662629,1719697860039,-500.0,0.00013808,3]
[330662630,1719697860050,-535.82,0.00013808,3]
[330662631,1719697860059,-500.0,0.00013808,3]
[330662632,1719697860068,-618.16,0.00013808,3]
[330662633,1719697860078,-520.19,0.00013808,3]
[330662634,1719697860088,-526.68,0.00013808,3]
[330662635,1719697860097,-500.0,0.00013808,3]
[330662636,1719697860106,-845.79,0.00013808,3]
[330662637,1719697860116,-500.0,0.00013808,3]
[330662638,1719697860125,-558.47,0.00013808,3]
[330662639,1719697860135,-590.44,0.00013808,3]
[330662640,1719697860145,-500.0,0.00013808,3]
[330662641,1719697860154,-500.0,0.00013808,3]
[330662642,1719697860164,-500.0,0.00013808,3]
[330662643,1719697860173,-1057.71,0.00013808,3]
[330662644,1719697860184,-870.06,0.00013808,3]
[330662645,1719697860194,-500.0,0.00013808,3]
[330662646,1719697860205,-2288.97,0.00013808,3]
[330662647,1719697860214,-500.0,0.00013808,3]
[330662648,1719697860224,-500.0,0.00013808,3]
[330662649,1719697860235,-1030.74,0.00013808,3]
[330662650,1719697860245,-588.45,0.00013808,3]
[330662651,1719697860255,-500.0,0.00013808,3]
[330662652,1719697860265,-513.85,0.00013808,3]
[330662653,1719697860275,-500.0,0.00013808,3]
[330662654,1719697860284,-836.96,0.00013808,3]
[330662655,1719697860295,-1133.19,0.00013808,3]
[330662656,1719697860304,-500.0,0.00013808,3]
[330662657,1719697860314,-500.0,0.00013808,3]
[330662658,1719697860323,-500.0,0.00013808,3]
[330662659,1719697860334,-500.0,0.00013808,3]
[330662660,1719697860344,-500.0,0.00013808,3]
[330662661,1719697860354,-565.54,0.00013808,3]
[330662662,1719697860364,-571.48,0.00013808,3]
[330662663,1719697860378,-2913.86,0.00013808,3]
[330662664,1719697860388,-1079.16,0.00013808,3]
[330662665,1719697860398,-500.0,0.00013808,3]
[330662666,1719697860407,-636.55,0.00013808,3]
[330662667,1719697860418,-500.0,0.00013808,3]
[330662668,1719697860428,-500.0,0.00013808,3]
[330662669,1719697860437,-500.0,0.00013808,3]
[330662670,1719697860448,-727.69,0.00013808,3]
[330662671,1719697860458,-862.68,0.00013808,3]
[330662672,1719697860468,-601.18,0.00013808,3]
[330662673,1719697860477,-917.7,0.00013808,3]
[330662674,1719697860487,-500.0,0.00013808,3]
[330662675,1719697860496,-500.0,0.00013808,3]
[330662676,1719697860506,-3115.39,0.00013808,3]
[330662677,1719697860516,-500.0,0.00013808,3]
[330662678,1719697860526,-500.0,0.00013808,3]
[330662679,1719697860536,-500.0,0.00013808,3]
[330662680,1719697860546,-500.0,0.00013808,3]
[330662681,1719697860556,-854.03,0.00013808,3]
[330662682,1719697860566,-500.0,0.00013808,3]
[330662683,1719697860575,-500.0,0.00013808,3]
[330662684,1719697860586,-1402.94,0.00013808,3]
[330662685,1719697860596,-1805.2,0.00013808,3]
[330662686,1719697860605,-500.0,0.00013808,3]
[330662687,1719697860615,-500.0,0.00013808,3]
[330662688,1719697860625,-951.34,0.00013808,3]
[330662689,1719697860634,-735.2,0.00013808,3]
[330662690,1719697860643,-506.75,0.00013808,3]
[330662691,1719697860653,-1963.77,0.00013808,3]
[330662692,1719697860662,-525.86,0.00013808,3]
[330662693,1719697860672,-500.0,0.00013808,3]
[330662694,1719697860681,-500.0,0.00013808,3]
[330662695,1719697860690,-615.08,0.00013808,3]
[330662696,1719697860700,-561.52,0.00013808,3]
[330662697,1719697860709,-500.0,0.00013808,3]
[330662698,1719697860719,-1012.0,0.00013808,3]
[330662699,1719697860728,-500.0,0.00013808,3]
[330662700,1719697860737,-279.02539707,0.00013808,3]
[330662701,1719697860747,-1036.72,0.00013808,3]
[330662702,1719697860757,-500.0,0.00013808,3]
[330662703,1719697860766,-770.04,0.00013808,3]
[330662704,1719697860776,-948.83,0.00013808,3]
[330662705,1719697860785,-500.0,0.00013808,3]